[Event "46th GRE-chT Premier 2018"]
[Site "Rio Achaia"]
[Date "2018.07.11"]
[Round "2"]
[White "Grammatikaki, Aggeliki"]
[Black "Psofimi, Milia"]
[Result "1/2-1/2"]
[ECO "A27"]
[WhiteElo "1679"]
[BlackElo "1580"]
[Annotator "NA"]
[PlyCount "122"]
[EventDate "2018.07.10"]
[EventType "team-tourn"]
[EventCountry "GRE"]
[SourceTitle "playchess.com"]
[Source "ChessBase"]
[SourceQuality "1"]
[TimeControl "40/5400+30:1800+30"]

1. c4 {[%emt 0:00:00]} e5 {[%emt 0:02:40]} 2. Nc3 {[%emt 0:00:00]} Nc6 {[%emt 0:00:25]} 3. Nf3 {[%emt 0:00:11]} g6 {[%emt 0:02:27]} 4. g3 {[%emt 0:04:57]} Bg7 {[%emt 0:00:57]} 5. Bg2 {[%emt 0:00:10]} Nge7 {[%emt 0:01:18]} 6. O-O {[%emt 0:04:26]} O-O {[%emt 0:02:21]} 7. e3 {[%emt 0:12:06]} d6 {[%emt 0:10:13]} 8. d3 {[%emt 0:21:17]} Rb8 {[%emt 0:10:20]} 9. Nd5 {[%emt 0:08:37]} Nxd5 {[%emt 0:08:56]} 10. cxd5 {[%emt 0:00:06]} Ne7 {[%emt 0:00:25]} 11. e4 {[%emt 0:02:31]} c6 {[%emt 0:03:46]} 12. dxc6 {[%emt 0:04:33]} Nxc6 {[%emt 0:07:59]} 13. Bg5 {[%emt 0:03:05]} Qc7 {[%emt 0:13:28]} 14. h3 {[%emt 0:08:42]} Be6 {[%emt 0:09:14]} 15. Qc1 {[%emt 0:05:52]} Qd7 {[%emt 0:04:41]} 16. Kh2 {[%emt 0:06:12]} Nb4 {[%emt 0:02:26]} 17. Qd2 {[%emt 0:06:53]} Qa4 {[%emt 0:07:13]} 18. Be7 {[%emt 0:00:45]} Rfe8 {[%emt 0:05:54]} 19. Bxd6 {[%emt 0:00:40]} Nc2 {[%emt 0:01:08]} 20. Bxb8 {[%emt 0:02:09]} Nxa1 {[%emt 0:00:41]} 21. Bxe5 {[%emt 0:03:15]} Bxe5 {[%emt 0:00:23]} 22. Nxe5 {[%emt 0:00:06]} Qxa2 {[%emt 0:00:25]} 23. f4 {[%emt 0:02:29]} f6 {[%emt 0:02:03]} 24. Ng4 {[%emt 0:00:29]} Bxg4 {[%emt 0:01:11]} 25. hxg4 {[%emt 0:00:04]} Qa4 {[%emt 0:00:49]} 26. Qc3 {[%emt 0:00:41]} Nc2 {[%emt 0:00:58]} 27. b3 {[%emt 0:01:42]} Qc6 {[%emt 0:00:30]} 28. Qxc6 {[%emt 0:00:18]} bxc6 {[%emt 0:00:03]} 29. Rc1 {[%emt 0:00:41]} Nd4 {[%emt 0:00:37]} 30. Ra1 {[%emt 0:01:06]} Nxb3 {[%emt 0:00:46]} 31. Rxa7 {[%emt 0:00:11]} Nc5 {[%emt 0:00:24]} 32. Rc7 {[%emt 0:01:05]} Nxd3 {[%emt 0:00:28]} 33. Rxc6 {[%emt 0:00:25]} Nf2 {[%emt 0:00:47]} 34. Bf3 {[%emt 0:00:10]} Nxe4 {[%emt 0:00:25]} 35. Bxe4 {[%emt 0:00:08]} Rxe4 {[%emt 0:00:04]} 36. Rxf6 {[%emt 0:00:09]} Kg7 {[%emt 0:00:16]} 37. Rb6 {[%emt 0:01:27]} Re7 {[%emt 0:01:14]} 38. g5 {[%emt 0:00:41]} Kf7 {[%emt 0:00:22]} 39. g4 {[%emt 0:00:37]} Kg7 {[%emt 0:00:39]} 40. Kg3 {[%emt 0:00:00]} Kf7 {[%emt 0:00:00]} 41. f5 {[%emt 0:09:30]} Ra7 {[%emt 0:04:07]} 42. Rf6+ {[%emt 0:06:01]} Kg7 {[%emt 0:01:50]} 43. Re6 {[%emt 0:00:45]} Kf7 {[%emt 0:02:55]} 44. Kf4 {[%emt 0:08:06]} Ra4+ {[%emt 0:01:09]} 45. Re4 {[%emt 0:00:32]} Ra7 {[%emt 0:00:12]} 46. Rd4 {[%emt 0:01:27]} Re7 {[%emt 0:03:16]} 47. Rd6 {[%emt 0:02:05]} Ra7 {[%emt 0:01:08]} 48. Ke5 {[%emt 0:01:28]} Ra5+ {[%emt 0:01:23]} 49. Rd5 {[%emt 0:00:28]} Ra7 {[%emt 0:10:58]} 50. Rb5 {[%emt 0:03:36]} Rc7 {[%emt 0:03:42]} 51. Kd6 {[%emt 0:01:04]} Ra7 {[%emt 0:02:16]} 52. Rc5 {[%emt 0:00:29]} Ra4 {[%emt 0:01:32]} 53. Rc7+ {[%emt 0:00:07]} Kg8 {[%emt 0:00:29]} 54. Ke7 {[%emt 0:01:13]} Ra8 {[%emt 0:01:20]} 55. Rd7 {[%emt 0:00:38]} Rf8 {[%emt 0:01:38]} 56. Rd8 {[%emt 0:00:08]} Rxd8 {[%emt 0:00:04]} 57. Kxd8 {[%emt 0:00:06]} gxf5 {[%emt 0:00:55]} 58. gxf5 {[%emt 0:00:05]} Kf8 {[%emt 0:00:30]} 59. f6 {[%emt 0:01:54]} Kf7 {[%emt 0:00:26]} 60. Kd7 {[%emt 0:00:07]} h5 {[%emt 0:00:27]} 61. gxh6 {[%emt 0:00:22]} Kxf6 {[%emt 0:00:10]} 1/2-1/2

[Event "46th GRE-chT Premier 2018"]
[Site "Rio Achaia"]
[Date "2018.07.11"]
[Round "2"]
[White "Stefanou, Konstantinos"]
[Black "Stefanou, Dimitrios"]
[Result "1/2-1/2"]
[ECO "E76"]
[WhiteElo "1677"]
[BlackElo "1824"]
[Annotator "NA"]
[PlyCount "59"]
[EventDate "2018.07.10"]
[EventType "team-tourn"]
[EventCountry "GRE"]
[SourceTitle "playchess.com"]
[Source "ChessBase"]
[SourceQuality "1"]
[TimeControl "40/5400+30:1800+30"]

1. d4 {[%emt 0:00:00]} Nf6 {[%emt 0:00:00]} 2. c4 {[%emt 0:00:00]} g6 {[%emt 0:00:00]} 3. Nc3 {[%emt 0:00:00]} Bg7 {[%emt 0:00:06]} 4. e4 {[%emt 0:00:09]} d6 {[%emt 0:00:32]} 5. f4 {[%emt 0:00:37]} O-O {[%emt 0:00:54]} 6. Nf3 {[%emt 0:00:08]} Bg4 {[%emt 0:01:54]} 7. Be2 {[%emt 0:01:33]} Bxf3 {[%emt 0:04:28]} 8. Bxf3 {[%emt 0:00:43]} c6 {[%emt 0:00:43]} 9. O-O {[%emt 0:01:13]} e6 {[%emt 0:00:48]} 10. e5 {[%emt 0:04:05]} dxe5 {[%emt 0:01:49]} 11. fxe5 {[%emt 0:04:07]} Nfd7 {[%emt 0:01:51]} 12. Be3 {[%emt 0:02:54]} Na6 {[%emt 0:03:37]} 13. Ne4 {[%emt 0:03:12]} Qb6 {[%emt 0:04:00]} 14. Qe2 {[%emt 0:01:24]} c5 {[%emt 0:02:56]} 15. dxc5 {[%emt 0:02:18]} Ndxc5 {[%emt 0:00:36]} 16. Nd6 {[%emt 0:01:52]} Qc7 {[%emt 0:02:19]} 17. Kh1 {[%emt 0:03:51]} Bxe5 {[%emt 0:03:57]} 18. Bxc5 {[%emt 0:02:42]} Bxd6 {[%emt 0:00:21]} 19. Bxd6 {[%emt 0:01:27]} Qxd6 {[%emt 0:00:09]} 20. Bxb7 {[%emt 0:00:04]} Rab8 {[%emt 0:00:37]} 21. Bf3 {[%emt 0:02:43]} Nc5 {[%emt 0:01:07]} 22. Rfd1 {[%emt 0:01:41]} Qf4 {[%emt 0:00:40]} 23. Rd2 {[%emt 0:02:18]} Rfd8 {[%emt 0:02:07]} 24. Rad1 {[%emt 0:02:39]} Rxd2 {[%emt 0:00:51]} 25. Rxd2 {[%emt 0:01:31]} Kg7 {[%emt 0:01:05]} 26. Kg1 {[%emt 0:02:45]} Kg8 {[%emt 0:01:39]} 27. Kh1 {[%emt 0:07:28]} Kg7 {[%emt 0:00:30]} 28. Kg1 {[%emt 0:00:45]} Kg8 {[%emt 0:00:11]} 29. Kh1 {[%emt 0:00:26]} Kg7 {[%emt 0:00:17]} 30. Kg1 {[%emt 0:00:12]} 1/2-1/2

[Event "46th GRE-chT Premier 2018"]
[Site "Rio Achaia"]
[Date "2018.07.11"]
[Round "2"]
[White "Prokopiou, Ioannis"]
[Black "Laspas, Panagiotis"]
[Result "0-1"]
[ECO "A48"]
[WhiteElo "1674"]
[BlackElo "1917"]
[Annotator "NA"]
[PlyCount "115"]
[EventDate "2018.07.10"]
[EventType "team-tourn"]
[EventCountry "GRE"]
[SourceTitle "playchess.com"]
[Source "ChessBase"]
[SourceQuality "1"]
[TimeControl "40/5400+30:1800+30"]

1. d4 {[%emt 0:00:00]} Nf6 {[%emt 0:04:42]} 2. Nf3 {[%emt 0:00:00]} g6 {[%emt 0:00:16]} 3. Bg5 {[%emt 0:00:14]} Bg7 {[%emt 0:00:15]} 4. e3 {[%emt 0:00:21]} d6 {[%emt 0:01:07]} 5. Bd3 {[%emt 0:01:21]} Nc6 {[%emt 0:01:26]} 6. c3 {[%emt 0:00:56]} a6 {[%emt 0:01:12]} 7. Nbd2 {[%emt 0:00:25]} O-O {[%emt 0:01:01]} 8. O-O {[%emt 0:00:36]} Qe8 {[%emt 0:00:38]} 9. Qc2 {[%emt 0:10:38]} Nd7 {[%emt 0:01:38]} 10. b4 {[%emt 0:02:54]} e5 {[%emt 0:04:34]} 11. d5 {[%emt 0:18:43]} Ne7 {[%emt 0:00:54]} 12. Bxe7 {[%emt 0:00:11]} Qxe7 {[%emt 0:00:07]} 13. e4 {[%emt 0:00:12]} Nf6 {[%emt 0:00:34]} 14. c4 {[%emt 0:08:52]} Nh5 {[%emt 0:03:20]} 15. Rfc1 {[%emt 0:15:46]} f5 {[%emt 0:03:50]} 16. c5 {[%emt 0:21:35]} Nf4 {[%emt 0:01:06]} 17. Bf1 {[%emt 0:02:16]} Kh8 {[%emt 0:04:30]} 18. Ne1 {[%emt 0:10:15]} fxe4 {[%emt 0:02:47]} 19. Qxe4 {[%emt 0:00:09]} Bf5 {[%emt 0:01:01]} 20. Qc4 {[%emt 0:00:17]} e4 {[%emt 0:12:06]} 21. Nc2 {[%emt 0:04:12]} Bxa1 {[%emt 0:01:56]} 22. Rxa1 {[%emt 0:00:01]} Qe5 {[%emt 0:01:10]} 23. Re1 {[%emt 0:00:50]} Qxd5 {[%emt 0:01:56]} 24. Qxd5 {[%emt 0:00:44]} Nxd5 {[%emt 0:00:10]} 25. cxd6 {[%emt 0:00:30]} cxd6 {[%emt 0:00:13]} 26. Nxe4 {[%emt 0:00:26]} Nf4 {[%emt 0:01:33]} 27. g3 {[%emt 0:00:30]} d5 {[%emt 0:00:33]} 28. gxf4 {[%emt 0:00:30]} Bxe4 {[%emt 0:00:06]} 29. Ne3 {[%emt 0:00:33]} Rxf4 {[%emt 0:00:23]} 30. Rd1 {[%emt 0:00:22]} Re8 {[%emt 0:01:38]} 31. b5 {[%emt 0:00:37]} Bf3 {[%emt 0:01:01]} 32. Rd2 {[%emt 0:00:32]} d4 {[%emt 0:00:17]} 33. Ng2 {[%emt 0:00:27]} Bxg2 {[%emt 0:00:05]} 34. Kxg2 {[%emt 0:00:07]} axb5 {[%emt 0:01:15]} 35. Bxb5 {[%emt 0:00:10]} Re5 {[%emt 0:00:07]} 36. Bd3 {[%emt 0:01:06]} Rg5+ {[%emt 0:03:55]} 37. Kf1 {[%emt 0:00:16]} Rh4 {[%emt 0:00:44]} 38. f3 {[%emt 0:00:21]} Kg7 {[%emt 0:03:06]} 39. Be4 {[%emt 0:00:46]} b5 {[%emt 0:00:28]} 40. Bc6 {[%emt 0:00:00]} Rc5 {[%emt 0:00:00]} 41. Be4 {[%emt 0:01:01]} Rc3 {[%emt 0:09:45]} 42. Kg2 {[%emt 0:07:24]} d3 {[%emt 0:04:38]} 43. Kg3 {[%emt 0:02:49]} Rh5 {[%emt 0:01:13]} 44. Kf4 {[%emt 0:01:49]} Rc2 {[%emt 0:00:28]} 45. Rxc2 {[%emt 0:01:29]} dxc2 {[%emt 0:00:05]} 46. Bxc2 {[%emt 0:00:03]} Rxh2 {[%emt 0:00:07]} 47. Bb3 {[%emt 0:00:01]} Kf6 {[%emt 0:00:13]} 48. Bd5 {[%emt 0:01:13]} Rh4+ {[%emt 0:00:25]} 49. Kg3 {[%emt 0:00:17]} Rd4 {[%emt 0:00:08]} 50. Bb3 {[%emt 0:00:06]} Ke5 {[%emt 0:00:30]} 51. Kf2 {[%emt 0:02:53]} Kf4 {[%emt 0:00:31]} 52. Ke2 {[%emt 0:00:17]} h5 {[%emt 0:00:20]} 53. Bf7 {[%emt 0:00:13]} h4 {[%emt 0:00:56]} 54. Be6 {[%emt 0:01:50]} Kg3 {[%emt 0:00:17]} 55. Ke3 {[%emt 0:01:39]} Rd1 {[%emt 0:00:22]} 56. Ke2 {[%emt 0:00:16]} Rb1 {[%emt 0:00:09]} 57. Ke3 {[%emt 0:00:26]} Re1+ {[%emt 0:00:05]} 58. Kd4 0-1

[Event "46th GRE-chT Premier 2018"]
[Site "Rio Achaia"]
[Date "2018.07.11"]
[Round "2"]
[White "Paraskevas, Georgios"]
[Black "Stamatiou, Rodolfos"]
[Result "0-1"]
[ECO "B22"]
[WhiteElo "1634"]
[BlackElo "1950"]
[Annotator "NA"]
[PlyCount "86"]
[EventDate "2018.07.10"]
[EventType "team-tourn"]
[EventCountry "GRE"]
[SourceTitle "playchess.com"]
[Source "ChessBase"]
[SourceQuality "1"]
[TimeControl "40/5400+30:1800+30"]

1. e4 {[%emt 0:00:00]} c5 {[%emt 0:00:00]} 2. c3 {[%emt 0:00:00]} g6 {[%emt 0:00:14]} 3. d4 {[%emt 0:00:00]} cxd4 {[%emt 0:00:17]} 4. cxd4 {[%emt 0:00:06]} d5 {[%emt 0:00:41]} 5. e5 {[%emt 0:01:35]} Nc6 {[%emt 0:00:44]} 6. Nc3 {[%emt 0:03:18]} Nh6 {[%emt 0:05:38]} 7. Be3 {[%emt 0:02:09]} Bg7 {[%emt 0:02:39]} 8. Qb3 {[%emt 0:01:02]} e6 {[%emt 0:04:17]} 9. Nf3 {[%emt 0:00:36]} O-O {[%emt 0:01:54]} 10. Bd3 {[%emt 0:11:22]} Nf5 {[%emt 0:10:53]} 11. O-O {[%emt 0:00:34]} f6 {[%emt 0:07:49]} 12. Bxf5 {[%emt 0:04:44]} gxf5 {[%emt 0:06:13]} 13. exf6 {[%emt 0:01:57]} Qxf6 {[%emt 0:04:48]} 14. g3 {[%emt 0:18:28]} b6 {[%emt 0:18:53]} 15. Rad1 {[%emt 0:23:06]} Qg6 {[%emt 0:08:14]} 16. Bf4 {[%emt 0:05:07]} Qg4 {[%emt 0:14:03]} 17. Ne5 {[%emt 0:16:56]} Bxe5 {[%emt 0:01:32]} 18. dxe5 {[%emt 0:00:47]} Ne7 {[%emt 0:01:45]} 19. Rd4 {[%emt 0:03:04]} Qg7 {[%emt 0:04:38]} 20. Re1 {[%emt 0:00:43]} Bb7 {[%emt 0:02:06]} 21. Nb5 {[%emt 0:00:31]} Nc6 {[%emt 0:00:44]} 22. Rdd1 {[%emt 0:00:17]} Na5 {[%emt 0:00:46]} 23. Qb4 {[%emt 0:00:33]} Ba6 {[%emt 0:01:47]} 24. Nd4 {[%emt 0:01:19]} Qf7 {[%emt 0:00:38]} 25. Qd6 {[%emt 0:01:11]} Rfe8 {[%emt 0:00:27]} 26. b3 {[%emt 0:00:37]} Rad8 {[%emt 0:00:41]} 27. Qa3 {[%emt 0:00:12]} Bb7 {[%emt 0:00:28]} 28. Nb5 {[%emt 0:00:51]} Qd7 {[%emt 0:00:32]} 29. Nd6 {[%emt 0:00:38]} Rf8 {[%emt 0:00:30]} 30. Rc1 {[%emt 0:00:07]} Nc6 {[%emt 0:00:35]} 31. Red1 {[%emt 0:02:05]} Qg7 {[%emt 0:00:31]} 32. Re1 {[%emt 0:00:29]} Nd4 {[%emt 0:00:29]} 33. Kg2 {[%emt 0:00:40]} Ba8 {[%emt 0:00:33]} 34. Re3 {[%emt 0:00:38]} Kh8 {[%emt 0:00:22]} 35. h4 {[%emt 0:00:33]} Nb5 {[%emt 0:00:36]} 36. Nxb5 {[%emt 0:00:51]} d4+ {[%emt 0:00:03]} 37. Kh2 {[%emt 0:00:40]} dxe3 {[%emt 0:00:10]} 38. fxe3 {[%emt 0:00:40]} Rd2+ {[%emt 0:00:09]} 39. Kg1 {[%emt 0:00:08]} Rfd8 {[%emt 0:01:34]} 40. Nd6 {[%emt 0:00:00]} Rg2+ {[%emt 0:00:00]} 41. Kf1 {[%emt 0:01:10]} Qg4 {[%emt 0:10:40]} 42. Nf7+ {[%emt 0:08:54]} Kg7 {[%emt 0:00:44]} 43. Bh6+ {[%emt 0:00:22]} Kg8 {[%emt 0:03:34]} 0-1

[Event "46th GRE-chT Premier 2018"]
[Site "Rio Achaia"]
[Date "2018.07.11"]
[Round "2"]
[White "Strati, Betty - Anna"]
[Black "Georgitsi, Sofia"]
[Result "1/2-1/2"]
[ECO "E32"]
[WhiteElo "1631"]
[BlackElo "1420"]
[Annotator "NA"]
[PlyCount "97"]
[EventDate "2018.07.10"]
[EventType "team-tourn"]
[EventCountry "GRE"]
[SourceTitle "playchess.com"]
[Source "ChessBase"]
[SourceQuality "1"]
[TimeControl "40/5400+30:1800+30"]

1. d4 {[%emt 0:00:00]} Nf6 {[%emt 0:00:26]} 2. c4 {[%emt 0:00:00]} e6 {[%emt 0:00:19]} 3. Nc3 {[%emt 0:00:00]} Bb4 {[%emt 0:00:31]} 4. Qc2 {[%emt 0:00:12]} b6 {[%emt 0:02:17]} 5. a3 {[%emt 0:01:37]} Bxc3+ {[%emt 0:00:21]} 6. Qxc3 {[%emt 0:00:09]} Bb7 {[%emt 0:00:59]} 7. Bg5 {[%emt 0:02:28]} d6 {[%emt 0:03:59]} 8. f3 {[%emt 0:04:01]} Nbd7 {[%emt 0:08:34]} 9. e3 {[%emt 0:02:39]} O-O {[%emt 0:04:19]} 10. Bd3 {[%emt 0:01:32]} Re8 {[%emt 0:03:36]} 11. Ne2 {[%emt 0:02:25]} h6 {[%emt 0:03:40]} 12. Bh4 {[%emt 0:01:14]} Qe7 {[%emt 0:12:38]} 13. O-O {[%emt 0:04:41]} e5 {[%emt 0:05:43]} 14. e4 {[%emt 0:13:06]} Rab8 {[%emt 0:08:57]} 15. Bf2 {[%emt 0:03:47]} a5 {[%emt 0:08:32]} 16. b4 {[%emt 0:05:18]} axb4 {[%emt 0:01:49]} 17. axb4 {[%emt 0:00:23]} Ra8 {[%emt 0:00:34]} 18. Rfb1 {[%emt 0:08:29]} Rxa1 {[%emt 0:04:30]} 19. Rxa1 {[%emt 0:00:33]} Ra8 {[%emt 0:00:12]} 20. Rxa8+ {[%emt 0:01:31]} Bxa8 {[%emt 0:00:06]} 21. Qa3 {[%emt 0:01:13]} Qf8 {[%emt 0:01:01]} 22. Nc3 {[%emt 0:04:59]} exd4 {[%emt 0:04:54]} 23. Bxd4 {[%emt 0:01:03]} Ne5 {[%emt 0:00:24]} 24. Bxe5 {[%emt 0:03:45]} dxe5 {[%emt 0:00:11]} 25. Nd5 {[%emt 0:07:12]} Bxd5 {[%emt 0:02:58]} 26. cxd5 {[%emt 0:01:25]} Qd6 {[%emt 0:00:43]} 27. Qc3 {[%emt 0:02:07]} Kf8 {[%emt 0:01:50]} 28. Kf2 {[%emt 0:08:07]} Ke7 {[%emt 0:02:20]} 29. h3 {[%emt 0:03:20]} Nh5 {[%emt 0:02:23]} 30. g3 {[%emt 0:00:50]} Nf6 {[%emt 0:04:08]} 31. h4 {[%emt 0:02:20]} Nd7 {[%emt 0:04:00]} 32. Bb5 {[%emt 0:01:45]} Nf8 {[%emt 0:01:35]} 33. Bc6 {[%emt 0:02:57]} f6 {[%emt 0:00:40]} 34. Qa3 {[%emt 0:01:23]} Nd7 {[%emt 0:01:01]} 35. Bxd7 {[%emt 0:01:01]} Kxd7 {[%emt 0:00:12]} 36. Qa4+ {[%emt 0:01:02]} Ke7 {[%emt 0:00:22]} 37. Ke3 {[%emt 0:00:36]} Qd7 {[%emt 0:04:08]} 38. Qc2 {[%emt 0:01:47]} Qd6 {[%emt 0:00:23]} 39. Qc4 {[%emt 0:01:01]} Kd7 {[%emt 0:02:00]} 40. f4 {[%emt 0:00:00]} Ke7 {[%emt 0:00:00]} 41. fxe5 {[%emt 0:04:31]} fxe5 {[%emt 0:01:31]} 42. Kd3 {[%emt 0:03:25]} Kd7 {[%emt 0:02:02]} 43. Ke3 {[%emt 0:13:34]} Ke7 {[%emt 0:03:52]} 44. h5 {[%emt 0:01:18]} Kd7 {[%emt 0:02:22]} 45. Qf1 {[%emt 0:03:45]} Ke7 {[%emt 0:02:08]} 46. Qc4 {[%emt 0:02:06]} Kd7 {[%emt 0:01:00]} 47. Qf1 {[%emt 0:00:13]} Ke7 {[%emt 0:00:11]} 48. Qc4 {[%emt 0:00:31]} Kd7 {[%emt 0:00:14]} 49. Qf1 {[%emt 0:00:04]} 1/2-1/2

[Event "46th GRE-chT Premier 2018"]
[Site "Rio Achaia"]
[Date "2018.07.11"]
[Round "2"]
[White "Grafakou, Sotiria-Aphrodite"]
[Black "Bania, Eleni"]
[Result "1-0"]
[ECO "D30"]
[WhiteElo "1617"]
[BlackElo "1349"]
[Annotator "NA"]
[PlyCount "115"]
[EventDate "2018.07.10"]
[EventType "team-tourn"]
[EventCountry "GRE"]
[SourceTitle "playchess.com"]
[Source "ChessBase"]
[SourceQuality "1"]
[TimeControl "40/5400+30:1800+30"]

1. d4 {[%emt 0:00:00]} d5 {[%emt 0:00:06]} 2. c4 {[%emt 0:00:00]} e6 {[%emt 0:00:17]} 3. Nf3 {[%emt 0:01:25]} c6 {[%emt 0:01:29]} 4. Nc3 {[%emt 0:00:12]} Bd6 {[%emt 0:01:06]} 5. e4 {[%emt 0:00:46]} dxe4 {[%emt 0:08:51]} 6. Nxe4 {[%emt 0:00:21]} Be7 {[%emt 0:05:02]} 7. Ne5 {[%emt 0:03:18]} Nd7 {[%emt 0:04:23]} 8. Nxd7 {[%emt 0:10:11]} Qxd7 {[%emt 0:06:30]} 9. Be2 {[%emt 0:05:08]} Nf6 {[%emt 0:01:25]} 10. Nc3 {[%emt 0:01:30]} O-O {[%emt 0:01:46]} 11. O-O {[%emt 0:01:33]} b6 {[%emt 0:14:46]} 12. Bf3 {[%emt 0:03:27]} Bb7 {[%emt 0:01:01]} 13. Be3 {[%emt 0:02:48]} Rfd8 {[%emt 0:06:39]} 14. Qc2 {[%emt 0:03:15]} Rac8 {[%emt 0:02:27]} 15. Rfd1 {[%emt 0:01:16]} Qc7 {[%emt 0:05:28]} 16. Rac1 {[%emt 0:06:43]} Bd6 {[%emt 0:08:58]} 17. h3 {[%emt 0:02:20]} Bf4 {[%emt 0:02:45]} 18. Ne4 {[%emt 0:04:57]} Nxe4 {[%emt 0:01:43]} 19. Qxe4 {[%emt 0:01:24]} Bxe3 {[%emt 0:00:35]} 20. fxe3 {[%emt 0:01:37]} Qe7 {[%emt 0:03:45]} 21. a3 {[%emt 0:07:14]} Rd7 {[%emt 0:02:14]} 22. Rc3 {[%emt 0:11:50]} h6 {[%emt 0:06:35]} 23. Qe5 {[%emt 0:09:56]} Rcd8 {[%emt 0:01:38]} 24. Rcd3 {[%emt 0:02:07]} f6 {[%emt 0:01:07]} 25. Qe4 {[%emt 0:02:57]} e5 {[%emt 0:03:50]} 26. d5 {[%emt 0:01:49]} cxd5 {[%emt 0:00:14]} 27. cxd5 {[%emt 0:00:20]} Rd6 {[%emt 0:00:22]} 28. Qa4 {[%emt 0:03:25]} Ba8 {[%emt 0:01:22]} 29. e4 {[%emt 0:01:11]} Qb7 {[%emt 0:03:43]} 30. Rc3 {[%emt 0:01:04]} b5 {[%emt 0:01:16]} 31. Qb4 {[%emt 0:00:31]} Qb6+ {[%emt 0:00:13]} 32. Qc5 {[%emt 0:01:32]} Qxc5+ {[%emt 0:01:46]} 33. Rxc5 {[%emt 0:00:07]} a6 {[%emt 0:00:11]} 34. Bg4 {[%emt 0:02:06]} g6 {[%emt 0:00:17]} 35. Rc8 {[%emt 0:02:07]} Rxc8 {[%emt 0:01:11]} 36. Bxc8 {[%emt 0:00:08]} f5 {[%emt 0:01:02]} 37. exf5 {[%emt 0:00:38]} gxf5 {[%emt 0:00:14]} 38. Bxf5 {[%emt 0:00:09]} Kg7 {[%emt 0:00:37]} 39. Be6 {[%emt 0:01:43]} Bc6 {[%emt 0:00:59]} 40. Kf2 {[%emt 0:00:00]} Be8 {[%emt 0:00:00]} 41. Rc1 {[%emt 0:01:48]} Kf6 {[%emt 0:01:19]} 42. Ke3 {[%emt 0:00:44]} Bg6 {[%emt 0:08:09]} 43. Rc5 {[%emt 0:03:53]} Bb1 {[%emt 0:04:30]} 44. Bc8 {[%emt 0:04:19]} Ke7 {[%emt 0:01:55]} 45. Bg4 {[%emt 0:02:54]} Bg6 {[%emt 0:03:22]} 46. Rc6 {[%emt 0:02:40]} a5 {[%emt 0:05:34]} 47. Rc7+ {[%emt 0:04:04]} Ke8 {[%emt 0:01:52]} 48. Be6 {[%emt 0:00:52]} Kd8 {[%emt 0:01:42]} 49. Rb7 {[%emt 0:00:31]} b4 {[%emt 0:02:25]} 50. axb4 {[%emt 0:00:19]} axb4 {[%emt 0:00:11]} 51. Rxb4 {[%emt 0:00:40]} Ra6 {[%emt 0:00:22]} 52. Rg4 {[%emt 0:05:11]} Bb1 {[%emt 0:01:22]} 53. Rh4 {[%emt 0:01:04]} Rb6 {[%emt 0:01:13]} 54. Rxh6 {[%emt 0:01:05]} Rxb2 {[%emt 0:00:07]} 55. d6 {[%emt 0:00:33]} Rb3+ {[%emt 0:03:12]} 56. Bxb3 {[%emt 0:00:09]} Bf5 {[%emt 0:00:04]} 57. Rh5 {[%emt 0:00:20]} Bd7 {[%emt 0:01:45]} 58. Ke4 1-0

[Event "46th GRE-chT Premier 2018"]
[Site "Rio Achaia"]
[Date "2018.07.11"]
[Round "2"]
[White "Chatziioannidi, Filippa"]
[Black "Bastianou, Chrysoula"]
[Result "0-1"]
[ECO "D30"]
[WhiteElo "1592"]
[BlackElo "1710"]
[Annotator "NA"]
[PlyCount "136"]
[EventDate "2018.07.10"]
[EventType "team-tourn"]
[EventCountry "GRE"]
[SourceTitle "playchess.com"]
[Source "ChessBase"]
[SourceQuality "1"]
[TimeControl "40/5400+30:1800+30"]

1. d4 {[%emt 0:00:00]} d5 {[%emt 0:00:00]} 2. c4 {[%emt 0:00:00]} e6 {[%emt 0:00:00]} 3. g3 {[%emt 0:00:00]} Nf6 {[%emt 0:00:00]} 4. Nf3 {[%emt 0:00:00]} c6 {[%emt 0:00:00]} 5. Qc2 {[%emt 0:00:11]} Be7 {[%emt 0:00:07]} 6. Bg2 {[%emt 0:00:09]} b6 {[%emt 0:00:17]} 7. O-O {[%emt 0:00:24]} Bb7 {[%emt 0:00:14]} 8. Nbd2 {[%emt 0:00:28]} O-O {[%emt 0:00:04]} 9. b3 {[%emt 0:00:15]} Na6 {[%emt 0:01:52]} 10. Bb2 {[%emt 0:02:14]} Rc8 {[%emt 0:00:58]} 11. Rac1 {[%emt 0:00:44]} c5 {[%emt 0:13:33]} 12. Ne5 {[%emt 0:05:30]} Qc7 {[%emt 0:05:44]} 13. Qb1 {[%emt 0:08:04]} dxc4 {[%emt 0:05:14]} 14. Ndxc4 {[%emt 0:04:29]} Bxg2 {[%emt 0:02:38]} 15. Kxg2 {[%emt 0:00:08]} Qb7+ {[%emt 0:00:58]} 16. Nf3 {[%emt 0:02:59]} Rfd8 {[%emt 0:01:53]} 17. Kg1 {[%emt 0:03:34]} Ne4 {[%emt 0:09:03]} 18. Rfd1 {[%emt 0:04:27]} h6 {[%emt 0:12:06]} 19. Ncd2 {[%emt 0:07:58]} Nf6 {[%emt 0:06:57]} 20. e4 {[%emt 0:09:56]} cxd4 {[%emt 0:03:37]} 21. Bxd4 {[%emt 0:01:12]} Nc5 {[%emt 0:03:44]} 22. e5 Nd5 {[%emt 0:01:08]} 23. Bxc5 {[%emt 0:11:22]} Bxc5 {[%emt 0:05:41]} 24. Ne4 Ba3 25. Rc4 {[%emt 0:03:12]} b5 {[%emt 0:04:35]} 26. Rcd4 {[%emt 0:01:20]} Qc7 {[%emt 0:02:59]} 27. Qd3 {[%emt 0:04:31]} Bb2 {[%emt 0:04:15]} 28. Nd6 {[%emt 0:01:35]} Bxd4 {[%emt 0:01:12]} 29. Nxc8 {[%emt 0:07:01]} Bxf2+ 30. Kxf2 {[%emt 0:02:38]} Rxc8 {[%emt 0:00:42]} 31. Rd2 {[%emt 0:08:27]} a6 32. Qd4 {[%emt 0:00:46]} Nc3 {[%emt 0:04:51]} 33. Kg2 {[%emt 0:01:26]} Nd5 {[%emt 0:00:39]} 34. Ne1 {[%emt 0:01:01]} Qb7 {[%emt 0:01:17]} 35. Kh3 {[%emt 0:00:30]} Rc3 {[%emt 0:01:26]} 36. Nd3 {[%emt 0:01:36]} Qc7 37. Nf4 {[%emt 0:03:37]} Nxf4+ {[%emt 0:02:58]} 38. Qxf4 Rc2 39. Rd6 {[%emt 0:04:03]} Rxa2 {[%emt 0:05:02]} 40. Qd4 {[%emt 0:00:00]} Qc2 {[%emt 0:00:00]} 41. Rd8+ {[%emt 0:08:28]} Kh7 {[%emt 0:00:54]} 42. Qd3+ {[%emt 0:01:42]} Qxd3 {[%emt 0:00:07]} 43. Rxd3 {[%emt 0:00:04]} Re2 {[%emt 0:00:09]} 44. Rd6 {[%emt 0:00:33]} Rxe5 {[%emt 0:00:14]} 45. Rxa6 {[%emt 0:00:05]} Re3 {[%emt 0:00:08]} 46. Ra7 {[%emt 0:02:35]} Kg6 {[%emt 0:00:08]} 47. Rb7 {[%emt 0:00:48]} Rxb3 {[%emt 0:00:06]} 48. Kg2 {[%emt 0:00:09]} Rb1 {[%emt 0:00:10]} 49. Kf2 {[%emt 0:00:22]} b4 {[%emt 0:00:12]} 50. Ke2 {[%emt 0:00:15]} b3 {[%emt 0:00:20]} 51. Kd2 {[%emt 0:00:20]} b2 {[%emt 0:00:12]} 52. Kc2 {[%emt 0:00:11]} Rh1 {[%emt 0:00:05]} 53. Kxb2 {[%emt 0:00:14]} Rxh2+ {[%emt 0:00:05]} 54. Kc1 {[%emt 0:00:23]} Rg2 {[%emt 0:00:16]} 55. Rb3 {[%emt 0:00:10]} e5 {[%emt 0:00:58]} 56. Kd1 {[%emt 0:00:13]} f5 {[%emt 0:00:27]} 57. Ke1 {[%emt 0:00:14]} Kg5 {[%emt 0:02:00]} 58. Kf1 {[%emt 0:00:15]} Rc2 {[%emt 0:00:10]} 59. Rb7 {[%emt 0:00:29]} g6 {[%emt 0:00:18]} 60. Rb3 {[%emt 0:00:11]} h5 {[%emt 0:01:22]} 61. Kg1 {[%emt 0:00:34]} h4 {[%emt 0:00:24]} 62. gxh4+ {[%emt 0:00:25]} Kxh4 {[%emt 0:00:07]} 63. Kf1 {[%emt 0:00:38]} e4 {[%emt 0:00:13]} 64. Ke1 {[%emt 0:00:21]} Kg4 {[%emt 0:00:15]} 65. Kf1 {[%emt 0:00:08]} f4 {[%emt 0:00:08]} 66. Ke1 {[%emt 0:00:17]} e3 {[%emt 0:00:08]} 67. Kd1 {[%emt 0:00:32]} Rh2 {[%emt 0:00:07]} 68. Ke1 {[%emt 0:00:06]} Kf3 {[%emt 0:00:20]} 0-1